fUST/lending_fUST_20250411
["ID","MTS","AMOUNT","RATE_DAILY","PERIOD"]
[357692688,1744332734383,-500.0,0.00024657,2]
[357692689,1744332734401,-500.0,0.00024657,2]
[357692690,1744332734416,-500.0,0.00024657,2]
[357692691,1744332734431,-301.86234671,0.00024657,2]
[357692692,1744332734444,-1011.66,0.00024657,2]
[357692693,1744332734459,-1011.66,0.00024657,2]
[357692694,1744332734473,-1011.66,0.00024657,2]
[357692695,1744332734487,-1011.66,0.00024657,2]
[357692696,1744332734502,-1011.66,0.00024657,2]
[357692697,1744332734517,-1011.66,0.00024657,2]
[357692698,1744332734532,-1011.66,0.00024657,2]
[357692699,1744332734547,-1011.66,0.00024657,2]
[357692700,1744332734565,-1011.66,0.00024657,2]
[357692701,1744332734580,-1011.66,0.00024657,2]
[357692702,1744332734595,-1011.66,0.00024657,2]
[357692703,1744332734609,-1011.66,0.00024657,2]
[357692704,1744332734623,-1011.66,0.00024657,2]
[357692705,1744332734637,-1011.66,0.00024657,2]
[357692706,1744332734650,-1011.66,0.00024657,2]
[357692707,1744332734665,-1011.66,0.00024657,2]
[357692708,1744332734684,-1011.66,0.00024657,2]
[357692709,1744332734699,-1011.66,0.00024657,2]
[357692710,1744332734716,-1011.66,0.00024657,2]
[357692711,1744332734730,-1011.66,0.00024657,2]
[357692712,1744332734745,-1011.66,0.00024657,2]
[357692713,1744332734760,-1011.66,0.00024657,2]
[357692714,1744332734775,-1011.66,0.00024657,2]
[357692715,1744332734788,-1011.79247585,0.00024657,2]
[357692716,1744332734803,-500.0,0.00024657,10]
[357692717,1744332734818,-500.0,0.00024657,10]
[357692718,1744332734833,-500.0,0.00024657,10]
[357692719,1744332734846,-500.0,0.00024657,10]
[357692720,1744332734867,-500.0,0.00024657,10]
[357692721,1744332734882,-500.0,0.00024657,10]
[357692722,1744332734897,-500.0,0.00024657,10]
[357692723,1744332734910,-500.0,0.00024657,10]
[357692724,1744332734924,-500.0,0.00024657,10]
[357692725,1744332734937,-500.0,0.00024657,10]
[357692726,1744332734951,-500.0,0.00024657,10]
[357692727,1744332734965,-512.25413906,0.00024657,10]
[357692728,1744332734980,-405.32917764,0.00024658,7]
[357692729,1744332734994,-200.0,0.00024658,2]
[357692730,1744332735007,-151.0,0.00024658,7]
[357692731,1744332735021,-151.0,0.00024658,7]
[357692732,1744332735036,-151.0,0.00024658,7]
[357692733,1744332735049,-151.0,0.00024658,7]
[357692734,1744332735063,-151.0,0.00024658,7]
[357692735,1744332735078,-154.219708,0.00024658,7]
[357692736,1744332735093,-380.0,0.00024658,2]
[357692737,1744332735107,-416.65490337,0.00024658,2]
[357692738,1744332735120,-2300.0,0.00024685,2]
[357692739,1744332735134,-262.0,0.000247,7]
[357692740,1744332735148,-1000.0,0.00024706,2]
[357692741,1744332735161,-289763.364443,0.000248,2]
[357692742,1744332735175,-2300.0,0.00024822,2]
[357692743,1744332735189,-156.39417239,0.000249,2]
[357692744,1744332735203,-156.39417235,0.000249,2]
[357692745,1744332735218,-156.39417235,0.000249,2]
[357692746,1744332735232,-156.39417235,0.000249,2]
[357692747,1744332735244,-156.39417235,0.000249,2]
[357692748,1744332735258,-156.27527195,0.000249,2]
[357692749,1744332735272,-156.9074467,0.000249,2]
[357692750,1744332735286,-619810.962847,0.000249,2]
[357692751,1744332735298,-11630.24417326,0.000249,5]
[357692752,1744332735311,-1132.93,0.00024931,2]
[357692753,1744332735326,-2980.0,0.00024965,2]
[357692754,1744332735340,-1089.784503,0.0002498,5]
[357692755,1744332735353,-1054.12015524,0.00025,2]
[357692756,1744332735368,-7167.0,0.00025,2]
[357692757,1744332735381,-500.0,0.00025,2]
[357692758,1744332735394,-500.0,0.00025,3]
[357692759,1744332735406,-20084.30790943,0.00025,2]
[357692760,1744332735420,-500.0,0.00025,5]
[357692761,1744332735433,-187650.68750228,0.00025,2]
[357692762,1744332735447,-1000.000001,0.00025,5]
[357692763,1744332735460,-142422.81374595,0.00025,2]
[357692764,1744332735472,-1054.13477178,0.00025,2]
[357692765,1744332735486,-2596.47046956,0.00025,2]
[357692766,1744332735500,-206.01325835,0.00025,2]
[357692767,1744332735513,-10364.0,0.00025,2]
[357692768,1744332735525,-838.48851553,0.00025,2]
[357692769,1744332735538,-155.06982497,0.00025,2]
[357692770,1744332735550,-12587.49893038,0.00025,2]
[357692771,1744332735562,-39923.46355957,0.00025,2]
[357692772,1744332735577,-45403.08803509,0.00025,7]
[357692773,1744332735591,-322419.14796908,0.00025,2]
[357692774,1744332735604,-2183.7196926,0.00025,12]
[357692775,1744332735616,-3729.66827612,0.00025,2]
[357692776,1744332735628,-12536.72526453,0.00025,7]
[357692777,1744332735640,-4006.48521156,0.00025,2]
[357692778,1744332735652,-1000.0,0.00025,5]
[357692779,1744332735664,-151.0,0.00025,2]
[357692780,1744332735681,-160.0,0.00025,7]
[357692781,1744332735694,-419.64641374,0.00025,7]
[357692782,1744332735707,-201.636276,0.00025,2]
[357692783,1744332735720,-160.0,0.00025,7]
[357692784,1744332735733,-2000.0,0.00025,4]
[357692785,1744332735745,-2300.0,0.00025118,2]
[357692786,1744332735758,-500.0,0.0002512,2]
[357692787,1744332735771,-200.0,0.000252,7]
[357692788,1744332735784,-261.27681199,0.000252,7]
[357692789,1744332735797,-1132.93,0.00025205,2]
[357692790,1744332735811,-500.0,0.0002526,7]
[357692791,1744332735824,-2300.0,0.00025264,2]
[357692792,1744332735837,-2300.0,0.00025276,2]
[357692793,1744332735851,-2300.0,0.0002529,2]
[357692794,1744332735863,-2300.0,0.00025306,2]
[357692795,1744332735876,-2300.0,0.00025419,2]
[357692796,1744332735888,-1000.0,0.00025463,2]
[357692797,1744332735900,-900.0,0.00025469,3]
[357692798,1744332735912,-1133.15885087,0.00025479,2]
[357692799,1744332735925,-2300.0,0.00025493,2]
[357692800,1744332735938,-30000.0,0.000255,3]
[357692801,1744332735950,-1000.0,0.000255,2]
[357692802,1744332735963,-1557.0,0.00025581,7]
[357692803,1744332735975,-500.0,0.00025704,2]
[357692804,1744332735988,-1000.0,0.0002576,2]
[357692805,1744332736001,-2300.0,0.00025774,2]
[357692806,1744332736012,-2300.0,0.00025859,2]
[357692807,1744332736025,-507.28805268,0.0002595,2]
[357692808,1744332736038,-516.60366055,0.00026,2]
[357692809,1744332736050,-19900.0,0.00026,2]
[357692810,1744332736063,-4500.98,0.00026,15]
[357692811,1744332736078,-2000.0,0.00026,4]
[357692812,1744332736090,-257.91778498,0.00026011,2]
[357692813,1744332736103,-500.0,0.00026082,7]
[357692814,1744332736116,-500.0,0.0002612,2]
[357692815,1744332736129,-1000.0,0.0002623,103]
[357692816,1744332736143,-1000.0,0.0002629,2]
[357692817,1744332736157,-2300.0,0.00026307,2]
[357692818,1744332736169,-385.41821239,0.00026327,6]
[357692819,1744332736182,-151.0,0.0002646,2]
[357692820,1744332736194,-568.61465259,0.00026538,2]
[357692821,1744332736206,-1000.0,0.0002655,2]
[357692822,1744332736218,-243.35,0.000266,31]
[357692823,1744332736230,-243.35,0.000266,31]
[357692824,1744332736244,-243.35,0.000266,31]
[357692825,1744332736256,-243.35,0.000266,31]
[357692826,1744332736270,-243.35,0.000266,31]
[357692827,1744332736282,-243.35,0.000266,31]
[357692828,1744332736295,-243.35,0.000266,31]
[357692829,1744332736307,-243.35,0.000266,31]
[357692830,1744332736321,-243.35,0.000266,31]
[357692831,1744332736334,-243.35,0.000266,31]
[357692832,1744332736346,-243.35,0.000266,31]
[357692833,1744332736359,-243.35,0.000266,31]
[357692834,1744332736372,-2300.0,0.00026621,2]
[357692835,1744332736386,-2258.0,0.0002669,2]
[357692836,1744332736398,-2161.79,0.000267,7]
[357692837,1744332736412,-500.0,0.0002674,2]
[357692838,1744332736424,-500.0,0.00026741,2]
[357692839,1744332736436,-1000.0,0.00026826,2]
[357692840,1744332736450,-191.0979273,0.00026862,2]
[357692841,1744332736463,-500.0,0.00026904,7]
[357692842,1744332736883,-2300.0,0.00026957,2]
[357692843,1744332736894,-3651.69218395,0.00027,2]
[357692844,1744332736904,-338.98105617,0.00027,2]
[357692845,1744332736914,-419.56135214,0.00027,7]
[357692846,1744332736923,-2000.0,0.00027,4]
[357692847,1744332736933,-200.0,0.00027039,120]
[357692848,1744332736943,-2300.0,0.00027109,2]
[357692849,1744332736953,-2300.0,0.00027161,2]
[357692850,1744332736962,-243.35,0.000272,31]
[357692851,1744332736972,-243.35,0.000272,31]
[357692852,1744332736982,-243.35,0.000272,31]
[357692853,1744332736992,-243.35,0.000272,31]
[357692854,1744332737001,-243.35,0.000272,31]
[357692855,1744332737010,-243.35,0.000272,31]
[357692856,1744332737020,-243.35,0.000272,31]
[357692857,1744332737029,-243.35,0.000272,31]
[357692858,1744332737039,-243.35,0.000272,31]
[357692859,1744332737049,-243.35,0.000272,31]
[357692860,1744332737059,-243.35,0.000272,31]
[357692861,1744332737068,-243.35,0.000272,31]
[357692862,1744332737079,-243.35,0.000272,31]
[357692863,1744332737089,-243.35,0.000272,31]
[357692864,1744332737098,-243.35,0.000272,31]
[357692865,1744332737107,-243.35,0.000272,31]
[357692866,1744332737117,-243.35,0.000272,31]
[357692867,1744332737126,-243.35,0.000272,31]
[357692868,1744332737136,-243.35,0.000272,31]
[357692869,1744332737145,-243.35,0.000272,31]
[357692870,1744332737154,-243.35,0.000272,31]
[357692871,1744332737164,-243.35,0.000272,31]
[357692872,1744332737173,-243.35,0.000272,31]
[357692873,1744332737182,-243.35,0.000272,31]
[357692874,1744332737192,-200.0,0.00027219,120]
[357692875,1744332737201,-200.0,0.00027262,120]
[357692876,1744332737210,-1000.0,0.00027342,2]
[357692877,1744332737219,-267.46074303,0.0002738,2]
[357692878,1744332737229,-1000.0,0.00027397,5]
[357692879,1744332737239,-1000.0,0.00027397,5]
[357692880,1744332737249,-1000.0,0.00027397,5]
[357692881,1744332737259,-1000.0,0.00027397,5]
[357692882,1744332737268,-1000.0,0.00027397,5]
[357692883,1744332737278,-352.74141512,0.00027397,5]
[357692884,1744332737287,-1000.0,0.00027397,2]
[357692885,1744332737297,-1000.0,0.00027397,2]
[357692886,1744332737306,-1000.0,0.00027397,2]
[357692887,1744332737316,-1000.0,0.00027397,2]
[357692888,1744332737327,-709.50776957,0.00027397,2]
[357692889,1744332737338,-500.0,0.00027397,2]
[357692890,1744332737347,-500.0,0.00027397,2]
[357692891,1744332737357,-500.0,0.00027397,2]
[357692892,1744332737367,-500.0,0.00027397,2]
[357692893,1744332737376,-500.0,0.00027397,2]
[357692894,1744332737386,-500.0,0.00027397,2]
[357692895,1744332737395,-500.0,0.00027397,2]
[357692896,1744332737405,-500.0,0.00027397,2]
[357692897,1744332737414,-500.0,0.00027397,2]
[357692898,1744332737423,-500.0,0.00027397,2]
[357692899,1744332737433,-500.0,0.00027397,2]
[357692900,1744332737443,-500.0,0.00027397,2]
[357692901,1744332737453,-500.0,0.00027397,2]
[357692902,1744332737462,-500.0,0.00027397,2]
[357692903,1744332737472,-500.0,0.00027397,2]
[357692904,1744332737481,-500.0,0.00027397,2]
[357692905,1744332737491,-500.0,0.00027397,2]
[357692906,1744332737500,-500.0,0.00027397,2]
[357692907,1744332737510,-552.09487405,0.00027397,2]
[357692908,1744332737519,-162.47144702,0.00027397,2]
[357692909,1744332737529,-504.72102123,0.00027397,2]
[357692910,1744332737539,-250.0,0.00027397,30]
[357692911,1744332737548,-250.0,0.00027397,30]
[357692912,1744332737557,-218.502256,0.00027397,120]
[357692913,1744332737567,-251.41928332,0.00027397,5]
[357692914,1744332737578,-2300.0,0.00027469,2]
[357692915,1744332737588,-200.0,0.00027473,120]
[357692916,1744332737597,-44919.65478224,0.000275,2]
[357692917,1744332737606,-439.0,0.000275,2]
[357692918,1744332737616,-200.0,0.00027582,120]
[357692919,1744332737625,-1000.0,0.00027618,2]
[357692920,1744332737635,-2300.0,0.00027663,2]
[357692921,1744332737644,-243.35,0.000277,31]
[357692922,1744332737653,-243.35,0.000277,31]
[357692923,1744332737663,-243.35,0.000277,31]
[357692924,1744332737673,-243.35,0.000277,31]
[357692925,1744332737685,-243.35,0.000277,31]
[357692926,1744332737694,-243.35,0.000277,31]
[357692927,1744332737704,-243.35,0.000277,31]
[357692928,1744332737715,-243.35,0.000277,31]
[357692929,1744332737724,-243.35,0.000277,31]
[357692930,1744332737734,-243.35,0.000277,31]
[357692931,1744332737744,-243.35,0.000277,31]
[357692932,1744332737753,-243.35,0.000277,31]
[357692933,1744332737763,-243.35,0.000277,31]
[357692934,1744332737773,-243.35,0.000277,31]
[357692935,1744332737782,-243.35,0.000277,31]
[357692936,1744332737792,-243.35,0.000277,31]
[357692937,1744332737801,-243.35,0.000277,31]
[357692938,1744332737810,-243.35,0.000277,31]
[357692939,1744332737819,-243.35,0.000277,31]
[357692940,1744332737829,-243.35,0.000277,31]
[357692941,1744332737838,-243.35,0.000277,31]
[357692942,1744332737848,-243.35,0.000277,31]
[357692943,1744332737857,-243.35,0.000277,31]
[357692944,1744332737867,-243.35,0.000277,31]
[357692945,1744332737876,-500.0,0.00027726,7]
[357692946,1744332737887,-2300.0,0.00027751,2]
[357692947,1744332737896,-151.0,0.00027783,2]
[357692948,1744332737906,-2300.0,0.00027847,2]
[357692949,1744332737916,-2300.0,0.00027898,2]
[357692950,1744332737925,-385.71766941,0.00027945,5]
[357692951,1744332737935,-32374.33916144,0.0002799,2]
[357692952,1744332737945,-160.0,0.00028,7]
[357692954,1744332737954,-2100.0,0.00028,2]
[357692955,1744332737964,-203.0,0.00028,30]
[357692956,1744332737973,-400.0,0.00028,10]
[357692957,1744332737983,-1000.0,0.00028,28]
[357692959,1744332737993,-201.22,0.00028,30]
[357692960,1744332738002,-650.26435946,0.00028,7]
[357692961,1744332738012,-2000.0,0.00028,4]
[357692962,1744332738022,-500.0,0.00028014,2]
[357692963,1744332738032,-2300.0,0.00028183,2]
[357692964,1744332738042,-500.0,0.00028211,2]
[357692965,1744332738052,-200.0,0.00028212,120]
[357692966,1744332738062,-243.35,0.000283,31]
[357692967,1744332738073,-243.35,0.000283,31]
[357692968,1744332738083,-243.35,0.000283,31]
[357692969,1744332738092,-243.35,0.000283,31]
[357692970,1744332738102,-243.35,0.000283,31]
[357692971,1744332738111,-243.35,0.000283,31]
[357692972,1744332738121,-243.35,0.000283,31]
[357692973,1744332738130,-243.35,0.000283,31]
[357692974,1744332738140,-243.35,0.000283,31]
[357692975,1744332738150,-243.35,0.000283,31]
[357692976,1744332738160,-243.35,0.000283,31]
[357692977,1744332738170,-243.35,0.000283,31]
[357692978,1744332738180,-243.35,0.000283,31]
[357692979,1744332738190,-243.35,0.000283,31]
[357692980,1744332738200,-243.35,0.000283,31]
[357692981,1744332738210,-243.35,0.000283,31]
[357692982,1744332738219,-243.35,0.000283,31]
[357692983,1744332738229,-243.35,0.000283,31]
[357692984,1744332738238,-243.35,0.000283,31]
[357692985,1744332738248,-243.35,0.000283,31]
[357692986,1744332738257,-243.35,0.000283,31]
[357692987,1744332738266,-243.35,0.000283,31]
[357692988,1744332738276,-243.35,0.000283,31]
[357692989,1744332738285,-243.35,0.000283,31]
[357692990,1744332738295,-500.0,0.00028313,2]
[357692991,1744332738305,-2300.0,0.00028357,2]
[357692992,1744332738315,-500.0,0.00028431,2]
[357692993,1744332738326,-2300.0,0.00028465,2]
[357692994,1744332738337,-2300.0,0.0002849,2]
[357692995,1744332738347,-500.0,0.0002852,2]
[357692996,1744332738357,-1000.0,0.0002856,2]
[357692997,1744332738368,-1000.0,0.00028626,104]
[357692998,1744332738377,-500.0,0.000287,30]
[357692999,1744332738387,-500.0,0.00028709,2]
[357693000,1744332738397,-277.35679052,0.00028749,2]
[357693001,1744332738407,-500.0,0.0002883,2]
[357693002,1744332738418,-2300.0,0.0002887,2]
[357693003,1744332738428,-243.35,0.000289,31]
[357693004,1744332738438,-243.35,0.000289,31]
[357693005,1744332738449,-243.35,0.000289,31]
[357693006,1744332738459,-243.35,0.000289,31]
[357693007,1744332738469,-243.35,0.000289,31]
[357693008,1744332738479,-243.35,0.000289,31]
[357693009,1744332738490,-243.35,0.000289,31]
[357693010,1744332738500,-243.35,0.000289,31]
[357693011,1744332738510,-243.35,0.000289,31]
[357693012,1744332738521,-243.35,0.000289,31]
[357693013,1744332738531,-243.35,0.000289,31]
[357693014,1744332738542,-243.35,0.000289,31]
[357693015,1744332738553,-243.35,0.000289,31]
[357693016,1744332738563,-243.35,0.000289,31]
[357693017,1744332738575,-243.35,0.000289,31]
[357693018,1744332738585,-243.35,0.000289,31]
[357693019,1744332738596,-2300.0,0.00028923,2]
[357693020,1744332738606,-3418.96245986,0.00029,7]
[357693021,1744332738616,-3418.96245986,0.00029,7]
[357693022,1744332738627,-5657.63717585,0.00029,7]
[357693023,1744332738636,-5657.63717585,0.00029,7]
[357693024,1744332738646,-303.10040782,0.00029,7]
[357693025,1744332738657,-303.10040782,0.00029,7]
[357693026,1744332738667,-5290.82769445,0.00029,7]
[357693027,1744332738678,-5290.82769445,0.00029,7]
[357693028,1744332738688,-651.18266044,0.00029,7]
[357693029,1744332738698,-651.18266044,0.00029,7]
[357693030,1744332738708,-3097.73379281,0.00029,7]
[357693031,1744332738719,-3097.73379281,0.00029,7]
[357693032,1744332738729,-378.38240624,0.00029,7]
[357693033,1744332738739,-378.38240624,0.00029,7]
[357693034,1744332738751,-871.03693062,0.00029,2]
[357693035,1744332738761,-2545.14247735,0.00029,7]
[357693036,1744332738771,-2545.14247735,0.00029,7]
[357693037,1744332738780,-32201.44767903,0.00029,7]
[357693038,1744332738790,-32201.44767903,0.00029,7]
[357693039,1744332738800,-160.0,0.00029,7]
[357693040,1744332738810,-419.64641374,0.00029,7]
[357693041,1744332738820,-2000.0,0.00029,4]
[357693042,1744332738829,-8498.3900838,0.00029,2]
[357693043,1744332738839,-200.0,0.00029049,120]
[357693044,1744332738848,-200.0,0.00029111,120]
[357693045,1744332738858,-500.0,0.00029119,2]
[357693046,1744332738867,-427.64574146,0.00029157,2]
[357693047,1744332738877,-2300.0,0.00029161,2]
[357693048,1744332738888,-2300.0,0.00029163,2]
[357693049,1744332738897,-3162.0,0.00029193,2]
[357693050,1744332738907,-2300.0,0.00029235,2]
[357693051,1744332738917,-4056.25,0.000293,7]
[357693052,1744332738927,-4056.25,0.000293,7]
[357693053,1744332738937,-2749.72339049,0.000293,7]
[357693054,1744332738947,-2065.42232477,0.000293,7]
[357693055,1744332738957,-2065.42232477,0.000293,7]
[357693056,1744332738968,-11704.96660663,0.000293,7]
[357693057,1744332738978,-11704.96660663,0.000293,7]
[357693058,1744332738988,-885.50920076,0.00029357,2]
[357693059,1744332738998,-500.0,0.0002937,7]
[357693060,1744332739009,-1000.0,0.00029385,2]
[357693061,1744332739019,-500.0,0.0002944,2]
[357693062,1744332739028,-200.0,0.0002946,120]
[357693063,1744332739038,-200.0,0.00029627,120]
[357693064,1744332739048,-500.0,0.0002977,2]
[357693065,1744332739058,-3678.99,0.000298,30]
[357693066,1744332739068,-1000.0,0.00029843,2]
[357693067,1744332739078,-5000.0,0.00029871,2]
[357693068,1744332739088,-200.0,0.00029891,120]
[357693069,1744332739099,-200.0,0.00029909,120]
[357693070,1744332739110,-2300.0,0.00029945,2]
[357693071,1744332739121,-384.0,0.0003,10]
[357693072,1744332739131,-192.84028562,0.0003,7]
[357693073,1744332739141,-283.19202324,0.0003,7]
[357693074,1744332739152,-173672.66216849,0.0003,3]
[357693075,1744332739162,-66426.0,0.0003,2]
[357693076,1744332739172,-300.0,0.0003,30]
[357693077,1744332739182,-2569.36247316,0.0003,2]
[357693078,1744332739192,-66725.74221976,0.0003,30]
[357693079,1744332739202,-5034.01576678,0.0003,7]
[357693080,1744332739212,-2005.0,0.0003,4]
[357693081,1744332739222,-13299.30659113,0.0003,60]
[357693082,1744332739231,-8973.17127449,0.0003,30]
[357693083,1744332739241,-150.5,0.0003,2]
[357693084,1744332739251,-238.2335,0.0003,2]
[357693085,1744332739261,-238.2335,0.0003,2]
[357693086,1744332739271,-237.468,0.0003,30]
[357693087,1744332739281,-156.15227387,0.0003,2]
[357693088,1744332739292,-419.64641374,0.0003,30]
[357693089,1744332739302,-508.363193,0.0003,2]
[357693090,1744332739311,-160.0,0.0003,30]
[357693091,1744332739323,-267.0,0.0003,2]
[357693092,1744332739333,-1000.0,0.00030036,7]
[357693093,1744332739343,-287.61899177,0.00030118,2]
[357693094,1744332739354,-500.0,0.00030195,7]
[357693095,1744332739364,-500.0,0.00030377,7]
[357693096,1744332739374,-2300.0,0.00030431,7]
[357693097,1744332739384,-151.0,0.00030561,2]
[357693098,1744332739395,-2300.0,0.00030574,7]
[357693099,1744332739405,-2300.0,0.00030899,7]
[357693100,1744332739415,-300.9063711,0.0003099,2]
[357693101,1744332739426,-2898.65637244,0.00031,2]
[357693102,1744332739436,-500.0,0.00031,5]
[357693103,1744332739446,-500.0,0.00031014,7]
[357693104,1744332739456,-1000.0,0.00031022,105]
[357693105,1744332739467,-924.97120055,0.00031069,7]
[357693106,1744332739477,-200.0,0.00031094,120]
[357693107,1744332739487,-2300.0,0.00031121,7]
[357693108,1744332739497,-1000.0,0.00031136,7]
[357693109,1744332739507,-200.0,0.00031142,120]
[357693110,1744332739517,-200.0,0.00031181,120]
[357693111,1744332739527,-2300.0,0.00031188,7]
[357693112,1744332739537,-2300.0,0.00031207,7]
[357693113,1744332739547,-500.0,0.00031221,7]
[357693114,1744332739557,-190.0,0.00031232,7]
[357693115,1744332739568,-1000.0,0.00031272,7]
[357693116,1744332739579,-200.0,0.00031276,120]
[357693117,1744332739589,-200.0,0.00031337,120]
[357693118,1744332739600,-500.0,0.00031415,7]
[357693119,1744332739611,-2300.0,0.00031443,7]
[357693120,1744332739621,-200.0,0.00031454,120]
[357693121,1744332739632,-298.26089446,0.00031487,2]
[357693122,1744332739642,-2300.0,0.00031658,7]
[357693123,1744332739652,-500.0,0.00031665,7]
[357693124,1744332739661,-3688.789,0.0003168,30]
[357693125,1744332739672,-2300.0,0.0003173,7]
[357693126,1744332739685,-2300.0,0.00031885,7]
[357693127,1744332739695,-500.0,0.00031896,7]
[357693128,1744332739705,-1778.0,0.00031931,2]
[357693129,1744332739714,-218.502256,0.00031963,120]
[357693130,1744332739724,-1500.0,0.00031971,5]
[357693131,1744332739734,-500.83149096,0.00031971,2]
[357693132,1744332739743,-1500.0,0.00031971,5]
[357693133,1744332739755,-1500.0,0.00031971,5]
[357693134,1744332739764,-1500.0,0.00031971,5]
[357693135,1744332739774,-658.9477271,0.00031971,5]
[357693136,1744332739784,-1500.0,0.00031971,5]
[357693137,1744332739794,-647.57270101,0.00031971,5]
[357693138,1744332739804,-1500.0,0.00031971,5]
[357693139,1744332739814,-1500.0,0.00031971,5]
[357693140,1744332739823,-1500.0,0.00031971,5]
[357693141,1744332739833,-1506.5954187,0.00031971,5]
[357693142,1744332739843,-1500.0,0.00031971,5]
[357693143,1744332739852,-224.10404573,0.00031971,5]
[357693144,1744332739862,-1500.0,0.00031971,5]
[357693145,1744332739872,-1500.0,0.00031971,5]
[357693146,1744332739882,-1500.0,0.00031971,5]
[357693147,1744332739891,-1500.0,0.00031971,5]
[357693148,1744332739900,-1500.0,0.00031971,5]
[357693149,1744332739910,-1500.0,0.00031971,5]
[357693150,1744332739919,-934.419837,0.00031971,5]
[357693151,1744332739928,-402.45774106,0.00031971,5]
[357693152,1744332739938,-1500.0,0.00031971,5]
[357693153,1744332739947,-1500.0,0.00031971,3]
[357693154,1744332739957,-1500.0,0.00031971,5]
[357693155,1744332739966,-1500.0,0.00031971,5]
[357693156,1744332739976,-1500.0,0.00031971,5]
[357693157,1744332739986,-724.76548846,0.00031971,5]
[357693158,1744332739995,-1500.0,0.00031971,5]
[357693159,1744332740005,-1500.0,0.00031971,5]
[357693160,1744332740014,-1000.0,0.00032,2]
[357693161,1744332740024,-5236.395793,0.00032,120]
[357693162,1744332740033,-270.0,0.00032,120]
[357693163,1744332740043,-1000.0,0.00032,120]
[357693164,1744332740052,-804.67,0.00032,30]
[357693165,1744332740062,-500.0,0.00032,2]
[357693166,1744332740072,-419.64641374,0.00032,120]
[357693167,1744332740081,-500.0,0.00032088,7]
[357693168,1744332740091,-1000.0,0.00032182,7]
[357693169,1744332740100,-1000.0,0.00032262,7]
[357693170,1744332740110,-1508.65875917,0.00032271,5]
[357693171,1744332740119,-2300.0,0.00032311,7]
[357693172,1744332740334,-2300.0,0.00032462,7]
[357693173,1744332740385,-500.0,0.00032469,7]
[357693174,1744332740395,-1500.0,0.00032471,5]
[357693175,1744332740406,-1005.19380435,0.00032471,5]
[357693176,1744332740416,-500.8372742,0.00032471,5]
[357693177,1744332740426,-1507.58582627,0.00032471,5]
[357693178,1744332740435,-288.9739724,0.00032471,5]
[357693179,1744332740445,-505.95848754,0.00032471,5]
[357693180,1744332740455,-1500.0,0.00032471,5]
[357693181,1744332740465,-360.6220711,0.00032471,5]
[357693182,1744332740475,-1500.0,0.00032471,5]
[357693183,1744332740485,-1500.0,0.00032471,5]
[357693184,1744332740495,-1500.0,0.00032471,5]
[357693185,1744332740504,-1500.0,0.00032471,5]
[357693186,1744332740514,-1415.92843945,0.00032471,5]
[357693187,1744332740523,-511.18400047,0.00032471,5]
[357693188,1744332740533,-1061.50261219,0.00032471,5]
[357693189,1744332740543,-1500.0,0.00032471,5]